fUST/lending_fUST_20250227
["ID","MTS","AMOUNT","RATE_DAILY","PERIOD"]
[354603093,1740595852474,-782.08,0.00052328,120]
[354603094,1740595852483,-1294.2,0.00052328,120]
[354603097,1740595852493,-500.0,0.00052328,120]
[354603098,1740595852503,-7797.57,0.00052328,120]
[354603101,1740595852512,-1420.3661955,0.00052355,4]
[354603103,1740595852522,-355.0331824,0.00052356,30]
[354603105,1740595852531,-500.0,0.00052373,10]
[354603107,1740595852541,-500.0,0.00052373,10]
[354603109,1740595852551,-275.50775202,0.00052373,3]
[354603111,1740595852560,-500.0,0.00052373,10]
[354603113,1740595852572,-500.0,0.00052373,10]
[354603115,1740595852582,-525.38238231,0.00052373,10]
[354603116,1740595852591,-500.0,0.00052373,7]
[354603118,1740595852600,-500.0,0.00052373,10]
[354603120,1740595852609,-500.0,0.00052373,10]
[354603122,1740595852618,-500.0,0.00052373,10]
[354603124,1740595852628,-500.0,0.00052373,10]
[354603126,1740595852638,-500.0,0.00052373,10]
[354603128,1740595852650,-500.0,0.00052373,10]
[354603130,1740595852660,-500.0,0.00052373,10]
[354603132,1740595852671,-500.50973305,0.00052373,7]
[354603134,1740595852682,-500.0,0.00052373,10]
[354603137,1740595852693,-240.0,0.00052373,10]
[354603139,1740595852705,-501.11670376,0.00052373,10]
[354603141,1740595852716,-500.0,0.00052373,10]
[354603143,1740595852728,-500.0,0.00052373,10]
[354603145,1740595852739,-267.91619475,0.00052373,7]
[354603147,1740595852754,-500.0,0.00052373,10]
[354603149,1740595852765,-500.0,0.00052373,10]
[354603150,1740595852777,-500.0,0.00052373,10]
[354603151,1740595852788,-500.0,0.00052373,10]
[354603152,1740595852799,-500.0,0.00052373,10]
[354603153,1740595852810,-500.0,0.00052373,10]
[354603154,1740595852828,-500.0,0.00052373,10]
[354603155,1740595852839,-500.0,0.00052373,10]
[354603156,1740595852851,-500.0,0.00052373,10]
[354603158,1740595852862,-245.60066,0.00052373,120]
[354603160,1740595852873,-315.0,0.00052557,30]
[354603162,1740595852884,-315.0,0.00052557,30]
[354603164,1740595852896,-315.0,0.00052557,30]
[354603166,1740595852906,-315.0,0.00052557,30]
[354603168,1740595852918,-350.0,0.00052557,30]
[354603170,1740595852929,-315.0,0.00052557,30]
[354603172,1740595852941,-350.0,0.00052557,30]
[354603174,1740595852953,-315.0,0.00052557,30]
[354603176,1740595852965,-350.0,0.00052557,30]
[354603178,1740595852978,-315.0,0.00052557,30]
[354603180,1740595852993,-350.0,0.00052557,30]
[354603182,1740595853005,-315.0,0.00052557,30]
[354603184,1740595853016,-350.0,0.00052557,30]
[354603186,1740595853028,-315.0,0.00052557,30]
[354603188,1740595853039,-350.0,0.00052557,30]
[354603190,1740595853053,-315.0,0.00052557,30]
[354603192,1740595853075,-350.0,0.00052557,30]
[354603194,1740595853088,-315.0,0.00052557,30]
[354603196,1740595853099,-350.0,0.00052557,30]
[354603198,1740595853110,-315.0,0.00052557,30]
[354603200,1740595853121,-350.0,0.00052557,30]
[354603202,1740595853131,-315.0,0.00052557,30]
[354603204,1740595853142,-350.0,0.00052557,30]
[354603206,1740595853153,-350.0,0.00052557,30]
[354603208,1740595853164,-315.0,0.00052557,30]
[354603210,1740595853177,-350.0,0.00052557,30]
[354603212,1740595853187,-315.0,0.00052557,30]
[354603214,1740595853199,-350.0,0.00052557,30]
[354603216,1740595853209,-350.0,0.00052557,30]
[354603218,1740595853220,-315.0,0.00052557,30]
[354603220,1740595853230,-350.0,0.00052557,30]
[354603222,1740595853241,-350.0,0.00052557,30]
[354603224,1740595853252,-350.0,0.00052557,30]
[354603225,1740595853262,-350.0,0.00052557,30]
[354603228,1740595853275,-160.0,0.00052601,60]
[354603230,1740595853286,-10000.0,0.00052602,52]
[354603232,1740595853296,-151.0,0.00052602,120]
[354603234,1740595853305,-151.0,0.00052602,120]
[354603236,1740595853319,-151.0,0.00052602,120]
[354603238,1740595853329,-154.047082,0.00052602,120]
[354603240,1740595853338,-245.0,0.00052602,120]
[354603242,1740595853347,-151.0,0.00052602,120]
[354603244,1740595853357,-151.0,0.00052602,120]
[354603246,1740595853367,-247.455428,0.00052602,120]
[354603248,1740595853376,-151.0,0.00052602,120]
[354603250,1740595853386,-151.0,0.00052602,120]
[354603252,1740595853395,-151.0,0.00052602,30]
[354603254,1740595853405,-151.0,0.00052602,30]
[354603255,1740595853414,-151.0,0.00052602,120]
[354603258,1740595853423,-151.0,0.00052602,120]
[354603259,1740595853433,-500.0,0.00052602,30]
[354603261,1740595853442,-151.0,0.00052602,120]
[354603263,1740595853451,-500.0,0.00052602,120]
[354603265,1740595853460,-500.0,0.00052602,120]
[354603267,1740595853470,-828.49,0.00052602,120]
[354603270,1740595853480,-276.1717,0.00052602,120]
[354603272,1740595853489,-180.163794,0.00052602,120]
[354603274,1740595853498,-180.163794,0.00052602,120]
[354603275,1740595853507,-500.0,0.00052602,120]
[354603277,1740595853517,-180.163794,0.00052602,120]
[354603279,1740595853526,-180.163794,0.00052602,120]
[354603281,1740595853535,-151.0,0.00052602,120]
[354603283,1740595853545,-151.0,0.00052602,120]
[354603285,1740595853554,-500.0,0.00052602,120]
[354603287,1740595853563,-840.04,0.00052602,120]
[354603289,1740595853576,-300.0,0.00052602,120]
[354603291,1740595853585,-174.33260454,0.00052602,120]
[354603293,1740595853595,-500.0,0.00052602,120]
[354603295,1740595853605,-500.0,0.00052602,120]
[354603297,1740595853614,-500.0,0.00052602,120]
[354603299,1740595853623,-799.37,0.00052602,120]
[354603302,1740595853633,-151.0,0.00052602,120]
[354603303,1740595853643,-500.0,0.00052602,120]
[354603306,1740595853652,-500.0,0.00052602,120]
[354603308,1740595853662,-500.0,0.00052602,120]
[354603310,1740595853671,-500.0,0.00052602,120]
[354603312,1740595853681,-500.0,0.00052602,120]
[354603314,1740595853690,-348.010355,0.00052602,120]
[354603316,1740595853699,-348.010355,0.00052602,120]
[354603318,1740595853709,-525.22,0.00052602,120]
[354603320,1740595853718,-526.23,0.00052602,120]
[354603322,1740595853728,-500.0,0.00052602,120]
[354603324,1740595853737,-692.43,0.00052602,120]
[354603326,1740595853747,-566.11,0.00052602,14]
[354603328,1740595853756,-1177.15,0.00052602,120]
[354603330,1740595853765,-500.0,0.00052602,120]
[354603332,1740595853774,-500.0,0.00052602,120]
[354603333,1740595853783,-151.505747,0.00052602,120]
[354603335,1740595853792,-1194.96,0.00052602,120]
[354603338,1740595853802,-500.0,0.00052602,120]
[354603340,1740595853812,-1734.78,0.00052602,120]
[354603342,1740595853825,-500.0,0.00052602,120]
[354603344,1740595853834,-1448.26,0.00052602,120]
[354603346,1740595853844,-151.0,0.00052602,120]
[354603348,1740595853853,-500.0,0.00052602,120]
[354603350,1740595853863,-500.0,0.00052602,120]
[354603352,1740595853873,-151.660557,0.00052602,120]
[354603354,1740595853883,-500.0,0.00052602,120]
[354603356,1740595853892,-500.0,0.00052602,120]
[354603358,1740595853901,-500.0,0.00052602,120]
[354603360,1740595853911,-772.59,0.00052602,120]
[354603362,1740595853920,-576.98,0.00052602,120]
[354603364,1740595853932,-500.0,0.00052602,120]
[354603366,1740595853947,-599.45,0.00052602,120]
[354603368,1740595853956,-500.0,0.00052602,120]
[354603370,1740595853966,-500.0,0.00052602,120]
[354603372,1740595853980,-500.0,0.00052602,120]
[354603374,1740595853989,-582.65,0.00052602,120]
[354603376,1740595853999,-500.0,0.00052602,120]
[354603378,1740595854009,-518.67,0.00052602,120]
[354603380,1740595854018,-500.0,0.00052602,120]
[354603382,1740595854028,-524.39,0.00052602,120]
[354603384,1740595854037,-540.34,0.00052602,120]
[354603386,1740595854047,-707.66,0.00052602,120]
[354603388,1740595854057,-500.0,0.00052602,120]
[354603390,1740595854069,-879.42,0.00052602,120]
[354603392,1740595854078,-151.289527,0.00052602,120]
[354603394,1740595854087,-894.65,0.00052602,120]
[354603396,1740595854097,-151.809813,0.00052602,30]
[354603398,1740595854106,-500.0,0.00052602,120]
[354603400,1740595854116,-523.35,0.00052602,120]
[354603402,1740595854125,-500.0,0.00052602,120]
[354603404,1740595854134,-500.0,0.00052602,120]
[354603406,1740595854144,-500.0,0.00052602,120]
[354603408,1740595854153,-500.0,0.00052602,120]
[354603410,1740595854163,-151.0,0.00052602,120]
[354603412,1740595854172,-500.0,0.00052602,120]
[354603414,1740595854181,-1060.7,0.00052602,120]
[354603416,1740595854191,-151.0,0.00052602,120]
[354603418,1740595854200,-500.0,0.00052602,120]
[354603420,1740595854209,-484.4099761,0.00052602,120]
[354603422,1740595854219,-630.3,0.00052602,120]
[354603424,1740595854227,-500.0,0.00052602,120]
[354603426,1740595854237,-500.0,0.00052602,120]
[354603428,1740595854246,-500.0,0.00052602,120]
[354603430,1740595854255,-500.0,0.00052602,120]
[354603432,1740595854265,-543.64,0.00052602,120]
[354603434,1740595854274,-151.0,0.00052602,120]
[354603436,1740595854283,-757.41,0.00052602,120]
[354603438,1740595854292,-618.62,0.00052602,120]
[354603440,1740595854301,-616.782814,0.00052602,120]
[354603442,1740595854310,-1759.91,0.00052602,120]
[354603444,1740595854322,-616.782814,0.00052602,120]
[354603446,1740595854331,-336.81092652,0.00052602,120]
[354603448,1740595854340,-500.0,0.00052602,120]
[354603450,1740595854349,-500.0,0.00052602,120]
[354603452,1740595854358,-1105.48,0.00052602,120]
[354603454,1740595854368,-1198.93,0.00052602,120]
[354603456,1740595854378,-849.13,0.00052602,120]
[354603459,1740595854388,-500.0,0.00052602,120]
[354603460,1740595854397,-501.93599235,0.00052602,120]
[354603463,1740595854407,-151.0,0.00052602,120]
[354603465,1740595854418,-500.0,0.00052602,120]
[354603467,1740595854427,-500.0,0.00052602,120]
[354603469,1740595854438,-500.0,0.00052602,120]
[354603471,1740595854447,-578.35,0.00052602,120]
[354603473,1740595854456,-827.78,0.00052602,120]
[354603475,1740595854466,-500.0,0.00052602,120]
[354603477,1740595854475,-1260.45,0.00052602,120]
[354603479,1740595854484,-500.0,0.00052602,120]
[354603481,1740595854494,-500.0,0.00052602,30]
[354603497,1740595854645,-624.52,0.00052602,120]
[354603499,1740595854655,-1553.65,0.00052602,120]
[354603502,1740595854665,-515.01,0.00052602,120]
[354603504,1740595854674,-558.26,0.00052602,120]
[354603506,1740595854684,-500.0,0.00052602,120]
[354603508,1740595854693,-527.02,0.00052602,120]
[354603510,1740595854703,-700.01,0.00052602,120]
[354603511,1740595854713,-500.0,0.00052602,120]
[354603514,1740595854723,-444.575532,0.00052602,120]
[354603516,1740595854732,-751.69,0.00052602,120]
[354603518,1740595854743,-444.575532,0.00052602,120]
[354603520,1740595854752,-500.0,0.00052602,120]
[354603522,1740595854762,-500.0,0.00052602,120]
[354603524,1740595854772,-500.0,0.00052602,15]
[354603526,1740595854782,-500.0,0.00052602,120]
[354603528,1740595854791,-1613.85,0.00052602,120]
[354603530,1740595854801,-1300.61,0.00052602,120]
[354603532,1740595854811,-667.88,0.00052602,120]
[354603534,1740595854823,-2143.47,0.00052602,120]
[354603536,1740595854832,-500.0,0.00052602,120]
[354603538,1740595854842,-542.87,0.00052602,120]
[354603540,1740595854851,-872.97,0.00052602,120]
[354603542,1740595854860,-151.0,0.00052602,120]
[354603544,1740595854870,-500.0,0.00052602,120]
[354603546,1740595854880,-1346.61,0.00052602,120]
[354603548,1740595854890,-344.14383885,0.00052602,120]
[354603550,1740595854899,-500.0,0.00052602,120]
[354603552,1740595854909,-2396.98,0.00052602,120]
[354603554,1740595854919,-640.62,0.00052602,120]
[354603556,1740595854929,-500.0,0.00052602,120]
[354603558,1740595854943,-500.0,0.00052602,120]
[354603560,1740595854953,-1154.76,0.00052602,120]
[354603562,1740595854962,-500.0,0.00052602,120]
[354603564,1740595854972,-434.048086,0.00052602,120]
[354603566,1740595854984,-500.0,0.00052602,120]
[354603568,1740595854993,-434.048086,0.00052602,120]
[354603570,1740595855003,-500.0,0.00052602,120]
[354603572,1740595855012,-500.0,0.00052602,120]
[354603574,1740595855022,-505.33172346,0.00052602,120]
[354603576,1740595855032,-500.0,0.00052602,120]
[354603578,1740595855042,-1463.13,0.00052602,120]
[354603580,1740595855053,-500.0,0.00052602,120]
[354603582,1740595855063,-2977.1,0.00052602,120]
[354603584,1740595855077,-500.0,0.00052602,120]
[354603586,1740595855088,-500.0,0.00052602,120]
[354603588,1740595855097,-500.0,0.00052602,120]
[354603590,1740595855107,-225.53206239,0.00052602,120]
[354603592,1740595855118,-153.577231,0.00052602,120]
[354603594,1740595855128,-500.0,0.00052602,120]
[354603596,1740595855138,-3444.22,0.00052602,120]
[354603598,1740595855147,-1010.42,0.00052602,120]
[354603600,1740595855158,-522.19,0.00052602,30]
[354603602,1740595855169,-968.128347,0.00052602,120]
[354603604,1740595855179,-989.6,0.00052602,120]
[354603607,1740595855191,-1121.27,0.00052602,120]
[354603609,1740595855204,-968.128347,0.00052602,120]
[354603611,1740595855214,-500.0,0.00052602,120]
[354603613,1740595855225,-1101.44,0.00052602,120]
[354603615,1740595855236,-500.0,0.00052602,45]
[354603617,1740595855246,-500.0,0.00052602,120]
[354603619,1740595855257,-1764.14,0.00052602,120]
[354603621,1740595855267,-500.0,0.00052602,120]
[354603623,1740595855277,-588.25,0.00052602,120]
[354603625,1740595855288,-2377.1,0.00052602,120]
[354603627,1740595855298,-151.0,0.00052602,120]
[354603629,1740595855309,-852.55,0.00052602,120]
[354603631,1740595855322,-500.0,0.00052602,120]
[354603633,1740595855333,-1100.79,0.00052602,120]
[354603635,1740595855344,-500.0,0.00052602,120]
[354603637,1740595855354,-500.0,0.00052602,120]
[354603639,1740595855364,-1552.98,0.00052602,120]
[354603641,1740595855375,-500.0,0.00052602,120]
[354603643,1740595855386,-500.0,0.00052602,120]
[354603645,1740595855396,-543.36,0.00052602,120]
[354603647,1740595855409,-797.98,0.00052602,120]
[354603649,1740595855419,-500.0,0.00052602,120]
[354603651,1740595855429,-478.81721782,0.00052602,120]
[354603653,1740595855439,-951.27,0.00052602,120]
[354603655,1740595855448,-500.0,0.00052602,120]
[354603657,1740595855457,-888.97,0.00052602,120]
[354603659,1740595855467,-612.57,0.00052602,120]
[354603661,1740595855476,-2699.87,0.00052602,120]
[354603663,1740595855486,-500.0,0.00052602,120]
[354603665,1740595855496,-151.0,0.00052602,120]
[354603667,1740595855506,-500.0,0.00052602,120]
[354603669,1740595855516,-500.0,0.00052602,120]
[354603671,1740595855526,-151.0,0.00052602,120]
[354603673,1740595855536,-500.0,0.00052602,120]
[354603675,1740595855546,-1580.11,0.00052602,120]
[354603678,1740595855555,-151.0,0.00052602,120]
[354603680,1740595855565,-151.0,0.00052602,120]
[354603682,1740595855577,-308.2531632,0.00052602,120]
[354603684,1740595855587,-500.0,0.00052602,120]
[354603686,1740595855596,-151.0,0.00052602,120]
[354603688,1740595855605,-500.0,0.00052602,120]
[354603690,1740595855615,-254.428632,0.00052602,120]
[354603691,1740595855624,-1704.51,0.00052602,120]
[354603694,1740595855633,-151.0,0.00052602,120]
[354603696,1740595855643,-500.0,0.00052602,120]
[354603698,1740595855653,-254.428632,0.00052602,120]
[354603700,1740595855663,-500.0,0.00052602,120]
[354603702,1740595855672,-151.0,0.00052602,120]
[354603704,1740595855682,-415.19938819,0.00052602,120]
[354603706,1740595855692,-788.27,0.00052602,120]
[354603708,1740595855701,-1099.83,0.00052602,120]
[354603710,1740595855711,-500.0,0.00052602,120]
[354603712,1740595855721,-500.0,0.00052602,120]
[354603714,1740595855731,-1902.4,0.00052602,120]
[354603716,1740595855740,-500.0,0.00052602,120]
[354603718,1740595855750,-500.0,0.00052602,120]
[354603720,1740595855759,-500.0,0.00052602,120]
[354603722,1740595855769,-500.0,0.00052602,120]
[354603724,1740595855778,-500.0,0.00052602,120]
[354603726,1740595855788,-500.0,0.00052602,120]
[354603728,1740595855797,-500.0,0.00052602,120]
[354603730,1740595855808,-500.0,0.00052602,120]
[354603732,1740595855819,-500.0,0.00052602,120]
[354603734,1740595855829,-500.0,0.00052602,120]
[354603736,1740595855839,-500.0,0.00052602,120]
[354603738,1740595855849,-1372.49,0.00052602,120]
[354603740,1740595855859,-500.0,0.00052602,120]
[354603742,1740595855869,-500.0,0.00052602,120]
[354603744,1740595855878,-588.1352269,0.00052602,120]
[354603746,1740595855888,-500.0,0.00052602,120]
[354603748,1740595855897,-500.0,0.00052602,120]
[354603750,1740595855907,-500.0,0.00052602,120]
[354603752,1740595855917,-500.0,0.00052602,120]
[354603754,1740595855927,-500.0,0.00052602,120]
[354603756,1740595855939,-2314.27,0.00052602,120]
[354603758,1740595855948,-901.59,0.00052602,120]
[354603760,1740595855958,-151.0,0.00052602,120]
[354603762,1740595855968,-822.39,0.00052602,120]
[354603764,1740595855980,-1486.63,0.00052602,120]
[354603766,1740595855991,-500.0,0.00052602,120]
[354603768,1740595856000,-1677.06,0.00052602,120]
[354603770,1740595856010,-500.0,0.00052602,120]
[354603772,1740595856020,-500.0,0.00052602,120]
[354603774,1740595856029,-1205.34,0.00052602,120]
[354603776,1740595856038,-500.0,0.00052602,120]
[354603778,1740595856048,-500.0,0.00052602,120]
[354603780,1740595856057,-2294.05,0.00052602,120]
[354603782,1740595856070,-500.0,0.00052602,120]
[354603784,1740595856079,-500.0,0.00052602,120]
[354603786,1740595856088,-500.0,0.00052602,120]
[354603788,1740595856098,-1120.61,0.00052602,120]
[354603790,1740595856107,-500.0,0.00052602,120]
[354603792,1740595856116,-604.64,0.00052602,120]
[354603794,1740595856126,-500.0,0.00052602,120]
[354603796,1740595856135,-1074.36,0.00052602,120]
[354603798,1740595856145,-500.0,0.00052602,120]
[354603800,1740595856154,-527.7,0.00052602,120]
[354603802,1740595856164,-515.1832253,0.00052602,120]
[354603804,1740595856173,-500.0,0.00052602,120]
[354603806,1740595856183,-500.0,0.00052602,120]
[354603808,1740595856192,-806.28,0.00052602,120]
[354603810,1740595856202,-500.0,0.00052602,120]
[354603812,1740595856212,-500.0,0.00052602,120]
[354603814,1740595856222,-2497.980382,0.00052602,120]
[354603816,1740595856231,-2497.980382,0.00052602,120]
[354603818,1740595856241,-1834.97,0.00052602,120]
[354603820,1740595856250,-500.0,0.00052602,120]
[354603822,1740595856260,-500.0,0.00052602,120]
[354603824,1740595856270,-2497.980382,0.00052602,120]
[354603826,1740595856279,-2497.980382,0.00052602,120]
[354603828,1740595856289,-500.0,0.00052602,120]
[354603830,1740595856298,-524.3,0.00052602,120]
[354603832,1740595856308,-500.0,0.00052602,120]
[354603834,1740595856319,-841.31,0.00052602,120]
[354603836,1740595856328,-500.0,0.00052602,120]
[354603838,1740595856338,-500.0,0.00052602,120]
[354603840,1740595856347,-1149.59,0.00052602,120]
[354603841,1740595856357,-500.0,0.00052602,120]
[354603842,1740595856366,-500.0,0.00052602,120]
[354603843,1740595856375,-500.0,0.00052602,120]
[354603844,1740595856385,-310.54283464,0.00052602,120]
[354603845,1740595856394,-504.48,0.00052602,120]
[354603846,1740595856403,-351.34082027,0.00052602,120]
[354603847,1740595856412,-500.0,0.00052602,120]
[354603848,1740595856421,-500.0,0.00052602,120]
[354603849,1740595856431,-610.98,0.00052602,120]
[354603850,1740595856440,-500.0,0.00052602,120]
[354603851,1740595856449,-17012.28,0.00052602,3]
[354603852,1740595856459,-500.0,0.00052602,120]
[354603853,1740595856467,-919.11,0.00052602,120]
[354603854,1740595856477,-500.0,0.00052602,120]
[354603855,1740595856486,-500.0,0.00052602,120]
[354603856,1740595856495,-500.0,0.00052602,120]
[354603857,1740595856504,-1139.22,0.00052602,120]
[354603858,1740595856514,-1427.81,0.00052602,120]
[354603859,1740595856523,-3966.28,0.00052602,120]
[354603860,1740595856532,-500.0,0.00052602,21]
[354603861,1740595856542,-1179.25,0.00052602,120]
[354603862,1740595856550,-500.0,0.00052602,120]
[354603863,1740595856560,-461.31720248,0.00052602,120]
[354603864,1740595856571,-643.49,0.00052602,120]
[354603865,1740595856580,-9738.58,0.00052602,120]
[354603866,1740595856589,-500.0,0.00052602,120]
[354603867,1740595856598,-801.82,0.00052602,120]
[354603868,1740595856608,-500.0,0.00052602,120]
[354603869,1740595856617,-911.86,0.00052602,120]
[354603870,1740595856626,-500.0,0.00052602,120]
[354603871,1740595856636,-552.77,0.00052602,120]
[354603872,1740595856645,-500.0,0.00052602,120]
[354603873,1740595856654,-11052.45,0.00052602,120]
[354603874,1740595856663,-500.05,0.00052602,120]
[354603875,1740595856673,-500.0,0.00052602,120]
[354603876,1740595856682,-587.37,0.00052602,120]
[354603877,1740595856691,-1570.34,0.00052602,120]
[354603878,1740595856700,-517.75,0.00052602,120]
[354603879,1740595856709,-3684.76,0.00052602,120]
[354603880,1740595856719,-500.0,0.00052602,120]
[354603881,1740595856728,-3499.84,0.00052602,120]
[354603882,1740595856737,-1015.05,0.00052602,120]
[354603883,1740595856747,-500.0,0.00052602,120]
[354603884,1740595856756,-13581.8,0.00052602,120]
[354603885,1740595856766,-500.0,0.00052602,120]
[354603886,1740595856775,-15292.47,0.00052602,120]
[354603887,1740595856785,-500.0,0.00052602,120]
[354603888,1740595856795,-500.0,0.00052602,120]
[354603889,1740595856804,-500.0,0.00052602,120]
[354603890,1740595856814,-360.24107478,0.00052602,120]
[354603891,1740595856826,-500.0,0.00052602,120]
[354603893,1740595856835,-500.0,0.00052602,120]
[354603895,1740595856845,-1020.31,0.00052602,120]
[354603896,1740595856854,-690.39,0.00052602,120]
[354603898,1740595856863,-3105.4,0.00052602,120]
[354603900,1740595856872,-834.44,0.00052602,30]
[354603902,1740595856882,-2309.16,0.00052602,120]
[354603903,1740595856891,-10799.99,0.00052602,120]
[354603905,1740595856900,-594.206144,0.00052602,120]
[354603907,1740595856910,-372.502142,0.00052602,110]
[354603908,1740595856919,-372.502142,0.00052602,110]
[354603910,1740595856931,-500.0,0.00052602,120]
[354603912,1740595856940,-850.01,0.00052602,120]
[354603914,1740595856949,-500.0,0.00052602,120]
[354603916,1740595856959,-594.206144,0.00052602,120]
[354603918,1740595856968,-190.52114,0.00052602,120]
[354603920,1740595856979,-190.52114,0.00052602,120]
[354603922,1740595856989,-372.502142,0.00052602,110]
[354603923,1740595856998,-4233.08,0.00052602,120]
[354603925,1740595857007,-372.502142,0.00052602,110]
[354603927,1740595857016,-151.0,0.00052602,3]
[354603929,1740595857025,-151.0,0.00052602,3]
[354603931,1740595857034,-4180.32,0.00052602,120]
[354603933,1740595857044,-232.10608095,0.00052602,120]
[354603935,1740595857053,-190.52114,0.00052602,120]
[354603937,1740595857063,-190.52114,0.00052602,120]
[354603939,1740595857074,-220.68152387,0.00052602,120]
[354603941,1740595857084,-500.0,0.00052602,120]
[354603943,1740595857094,-462.552748,0.00052602,120]
[354603945,1740595857103,-2800.4,0.00052602,120]
[354603947,1740595857113,-2084.49,0.00052602,120]
[354603949,1740595857122,-583.3,0.00052602,120]
[354603951,1740595857132,-462.552748,0.00052602,120]
[354603953,1740595857141,-2951.73,0.00052602,120]
[354603955,1740595857151,-2431.59,0.00052602,120]
[354603957,1740595857161,-1000.0,0.00052602,120]
[354603959,1740595857170,-1918.79,0.00052602,120]
[354603961,1740595857179,-500.0,0.00052602,120]
[354603963,1740595857188,-1679.17,0.00052602,120]
[354603965,1740595857197,-500.0,0.00052602,120]
[354603967,1740595857206,-500.0,0.00052602,120]
[354603969,1740595857215,-500.0,0.00052602,120]
[354603971,1740595857225,-514.65,0.00052602,120]
[354603973,1740595857234,-2627.04,0.00052602,120]
[354603975,1740595857243,-500.0,0.00052602,120]
[354603976,1740595857252,-1409.36,0.00052602,120]
[354603977,1740595857261,-500.0,0.00052602,120]
[354603978,1740595857270,-785.21,0.00052602,120]
[354603979,1740595857279,-834.81,0.00052602,120]
[354603980,1740595857289,-3016.52,0.00052602,120]
[354603982,1740595857299,-2867.38,0.00052602,120]
[354603983,1740595857308,-684.79,0.00052602,120]
[354603984,1740595857317,-500.0,0.00052602,120]
[354603986,1740595857328,-928.1,0.00052602,120]
[354603988,1740595857338,-511.43,0.00052602,120]
[354603990,1740595857347,-500.0,0.00052602,120]
[354603992,1740595857357,-500.0,0.00052602,120]
[354603994,1740595857366,-173.30739,0.00052602,120]
[354604009,1740595857516,-149360.05897659,0.00052602,7]
[354604011,1740595857788,-1708.82,0.00052602,7]
[354604012,1740595857799,-12103.89102341,0.00052602,7]
[354604013,1740595857808,-567.25,0.00052602,120]
[354604014,1740595857821,-173.30739,0.00052602,120]
[354604015,1740595857830,-4605.54,0.00052602,120]
[354604016,1740595857841,-884.36,0.00052602,120]
[354604017,1740595857850,-173.30739,0.00052602,120]
[354604018,1740595857859,-1000.0,0.00052602,120]
[354604019,1740595857868,-173.30739,0.00052602,120]
[354604020,1740595857878,-500.0,0.00052602,120]
[354604021,1740595857887,-573.56,0.00052602,120]
[354604022,1740595857896,-500.0,0.00052602,120]
[354604023,1740595857905,-500.0,0.00052602,120]
[354604024,1740595857915,-512.20351605,0.00052602,120]
[354604025,1740595857925,-1964.79,0.00052602,120]
[354604026,1740595857938,-1002.41667493,0.00052602,120]
[354604027,1740595857950,-3209.59150975,0.00052602,120]
[354604028,1740595858093,-157.85,0.00043482,2]
[354604029,1740595858103,-501.067029,0.00052054,120]
[354604030,1740595858112,-669.082971,0.00052602,120]
[354604037,1740595858264,-3600.0300928,0.00052602,120]
[354604039,1740595858277,-8465.84537167,0.00052602,120]